bitfinex/quotes_ETHUSD_20250611
["timestamp","ask_amount","ask_price","bid_price","bid_amount"]
[1749641953718,8.35629942,2764.3,2764.2,0.66666667]
[1749641953925,10.15914759,2764.3,2764.2,0.66666667]
[1749641956440,10.70914759,2764.3,2764.2,0.66666667]
[1749641960729,3.61830447,2763.8,2763.5,0.8118]
[1749641960930,3.682,2763.7,2763.3,0.8208]
[1749641961328,3.61846866,2763.6,2763.5,0.1808]
[1749641961581,8.99766099,2763.7,2763.5,0.1808]
[1749641961727,5.37924954,2763.7,2763.5,0.1808]
[1749641962157,5.6808966,2763.7,2763.5,0.1808]
[1749641963606,9.29923759,2763.7,2763.5,0.1808]
[1749641963755,0.92992376,2763.6,2763.5,0.1808]
[1749641964382,4.85003948,2763.6,2763.3,0.1808]
[1749641964578,3.683,2763.5,2763.3,0.1808]
[1749641965655,3.98464706,2763.5,2763.3,0.1808]
[1749641965871,0.55,2763.2,2762.7,1.0066]
[1749641966076,3.683,2763.1,2762.7,1.0066]
[1749641966586,3.98464706,2763.1,2762.7,1.0066]
[1749641967562,7.60384317,2763.1,2762.7,1.0066]
[1749641967890,3.98464706,2763.1,2762.7,0.1808]
[1749641968073,0.55,2763.0,2762.7,0.1808]
[1749641968258,7.30248562,2762.9,2762.5,1.0103]
[1749641968459,3.98464706,2762.9,2762.5,1.0103]
[1749641969188,0.30164706,2762.8,2762.5,1.0103]
[1749641971001,0.30164706,2762.8,2762.5,0.1808]
[1749641971205,0.39846471,2762.7,2762.3,0.8318]
[1749641971358,3.683,2762.6,2762.4,0.1808]
[1749641971564,7.3028597,2762.6,2762.4,0.1808]
[1749641971990,3.6199095,2762.5,2762.4,0.1808]
[1749641972302,3.62045303,2762.1,2762.0,0.1808]
[1749641972601,3.62045303,2762.1,2761.9,0.1808]
[1749641972602,3.683,2762.1,2761.9,0.1808]
[1749641972765,4.0450453,2762.1,2761.9,0.1808]
[1749641973160,3.98251109,2762.1,2761.9,0.1808]
[1749641973474,3.98251109,2762.1,2761.6,0.8302]
[1749641973475,7.3035648,2762.0,2761.3,0.7871]
[1749641973673,3.8638,2762.0,2761.5,0.1808]
[1749641973888,0.86714327,2761.9,2761.5,0.1808]
[1749641974808,9.67218227,2761.6,2761.3,0.7871]
[1749641975006,3.684,2761.5,2761.3,0.9679]
[1749641975227,3.684,2761.4,2761.3,0.1808]
[1749641975430,4.41451607,2761.4,2761.3,0.1808]
[1749641978112,0.1808,2761.8,2761.3,0.1808]
[1749641978287,9.67218227,2761.6,2761.3,0.1808]
[1749641978487,0.8127,2761.5,2761.3,0.1808]
[1749641978693,3.684,2761.4,2761.3,0.1808]
[1749641979524,0.55,2761.3,2760.3,0.7754]
[1749641979684,9.67218227,2761.0,2760.6,0.1808]
[1749641980017,3.684,2760.9,2760.6,0.1808]
[1749641980421,4.6197,2760.9,2760.4,0.1808]
[1749641981132,0.4234,2761.2,2760.3,0.7754]
[1749641981419,3.685,2761.1,2760.9,0.1808]
[1749641981714,0.7926,2761.3,2760.9,0.1808]
[1749641981916,3.688,2761.2,2760.9,0.1808]
[1749641983286,3.687,2761.1,2760.8,0.7519]
[1749641983494,3.687,2761.0,2760.8,0.7519]
[1749641983695,0.1808,2761.5,2760.8,0.7519]
[1749641983896,3.62034267,2762.2,2761.1,0.7657]
[1749641984188,0.1808,2761.9,2761.5,0.1808]
[1749641984388,0.85164706,2761.8,2761.1,0.7657]
[1749641984613,3.8688,2761.7,2761.2,0.1808]
[1749641984919,0.30164706,2761.6,2761.2,0.1808]
[1749641985084,0.85993698,2761.5,2761.2,0.1808]
[1749641985286,0.30164706,2761.4,2761.2,0.1808]
[1749641985615,3.688,2761.3,2761.2,0.1808]
[1749641985820,3.98964706,2761.3,2761.2,0.1808]
[1749641988733,3.98764706,2761.3,2761.2,0.1808]
[1749641991320,4.47240546,2761.3,2761.2,0.1808]
[1749641992622,4.47240546,2761.3,2760.7,0.8289]
[1749641992799,0.7308,2761.2,2760.7,1.0097]
[1749641994325,4.35247728,2761.2,2760.7,1.0097]
[1749641994630,4.35247728,2761.2,2760.7,0.1808]
[1749641994631,4.94157489,2761.1,2760.7,0.1808]
[1749641994804,1.31979785,2761.1,2760.7,0.1808]
[1749641995003,3.6219023,2761.0,2760.3,0.7923]
[1749641995202,3.6219023,2761.0,2760.5,0.1808]
[1749641995203,3.687,2760.9,2760.5,0.1808]
[1749641995415,0.1808,2761.0,2760.6,0.8208]
[1749641995602,3.687,2760.9,2760.7,0.1808]
[1749641995801,4.0557,2760.9,2760.7,0.1808]
[1749641996888,0.3687,2760.9,2760.7,0.1808]
[1749641997091,3.69,2760.8,2760.7,0.1808]
[1749641997305,0.1808,2761.2,2760.7,0.1808]
[1749641997515,3.99164706,2761.1,2760.7,0.1808]
[1749641997716,3.69,2761.1,2760.7,0.1808]
[1749641997911,0.89974346,2761.0,2760.7,0.1808]
[1749641998131,3.69,2760.9,2760.7,0.1808]
[1749641998329,0.30164706,2761.0,2760.7,0.1808]
[1749641998543,3.69,2760.9,2760.8,0.7506]
[1749641999002,3.69,2760.9,2760.8,0.9314]
[1749641999527,0.30164706,2761.0,2760.8,0.9314]
[1749641999823,3.69,2760.9,2760.8,0.9314]
[1749642000025,0.30164706,2761.0,2760.8,0.9314]
[1749642000229,3.69,2760.9,2760.8,0.9314]
[1749642002005,3.689,2760.9,2760.8,0.9314]
[1749642003010,3.689,2760.9,2760.8,2.37444261]
[1749642003828,3.689,2760.9,2760.8,2.37513698]
[1749642004137,3.689,2760.9,2760.8,0.9314]
[1749642004347,3.688,2760.9,2760.8,2.37521484]
[1749642004640,3.688,2760.9,2760.8,2.37544569]
[1749642005356,4.08696471,2760.9,2760.8,1.62484569]
[1749642005906,4.08696471,2760.9,2760.8,0.1808]
[1749642006322,0.39896471,2760.9,2760.8,1.62484569]
[1749642006525,3.69,2760.9,2760.8,1.62484569]
[1749642007142,3.69,2760.9,2760.2,12.88608344]
[1749642007143,3.62213851,2760.8,2760.7,1.44404569]
[1749642007410,7.49287757,2760.9,2760.7,1.08324193]
[1749642007643,1.141641,2760.8,2760.7,1.08324193]
[1749642007801,1.914241,2760.8,2760.7,1.08324193]
[1749642008203,5.53637951,2760.8,2760.7,1.08324193]
[1749642008409,11.88807033,2760.8,2760.6,1.08324193]
[1749642008607,1.93809438,2760.7,2760.6,1.08324193]
[1749642008949,1.93809438,2760.7,2760.5,1.08324193]
[1749642009123,1.07424706,2760.8,2760.5,1.08324193]
[1749642009657,1.07424706,2760.8,2760.6,1.08324193]
[1749642009858,0.30164706,2760.8,2760.6,1.08324193]
[1749642010010,0.30164706,2760.8,2760.7,1.08324193]
[1749642010210,3.99364706,2760.8,2760.7,0.1808]
[1749642010467,0.30164706,2760.8,2760.7,1.62484569]
[1749642010747,3.99464706,2760.8,2760.7,1.62484569]
[1749642010953,0.30164706,2760.8,2760.7,1.62484569]
[1749642011106,0.30164706,2760.8,2760.7,0.1808]
[1749642011309,3.99464706,2760.8,2760.7,0.1808]
[1749642012452,3.99364706,2760.8,2760.7,0.1808]
[1749642013519,3.99264706,2760.8,2760.7,0.1808]
[1749642013749,0.30164706,2760.8,2760.7,0.1808]
[1749642014133,3.99264706,2760.8,2760.7,0.1808]
[1749642014532,0.30164706,2760.8,2760.7,0.1808]
[1749642014735,3.99264706,2760.8,2760.7,0.1808]
[1749642015031,3.99164706,2760.8,2760.7,0.1808]
[1749642015552,3.99164706,2760.8,2760.7,2.34536422]
[1749642015743,3.99164706,2760.8,2760.7,0.1808]
[1749642016173,3.99164706,2760.8,2760.7,2.34536422]
[1749642016465,3.99164706,2760.8,2760.7,0.1808]
[1749642018086,4.39081177,2760.8,2760.7,1.62559719]
[1749642018297,4.39081177,2760.8,2760.6,1.44479719]
[1749642018628,0.70081177,2760.8,2760.7,1.083779]
[1749642018821,3.99264706,2760.8,2760.7,1.62559719]
[1749642019048,0.30164706,2760.8,2760.7,0.1808]
[1749642019251,3.99264706,2760.8,2760.7,2.34536422]
[1749642019763,3.99264706,2760.8,2760.7,0.1808]
[1749642019764,0.30164706,2760.8,2760.7,0.1808]
[1749642019962,0.30164706,2760.8,2760.7,1.0128]
[1749642020754,3.692,2761.1,2760.7,1.0128]
[1749642020938,3.692,2761.1,2761.0,1.44520713]
[1749642021147,3.692,2761.1,2761.0,0.1808]
[1749642021373,3.692,2761.1,2761.0,1.6259412]
[1749642021732,4.0612,2761.1,2761.0,1.6259412]
[1749642022237,3.692,2761.1,2761.0,1.6259412]
[1749642023267,3.692,2761.1,2761.0,0.1808]
[1749642023642,3.692,2761.1,2761.0,1.62590124]
[1749642027874,0.9493,2761.6,2761.1,0.8033]
[1749642027875,3.69,2761.2,2761.1,0.8033]
[1749642028174,3.69,2761.2,2761.1,2.24847769]
[1749642028338,3.69,2761.2,2761.1,1.44517769]
[1749642028533,4.059,2761.2,2761.0,1.62597769]
[1749642029688,4.059,2761.2,2761.1,1.08392601]
[1749642030044,4.059,2761.2,2761.0,1.62597769]
[1749642030566,0.7534,2761.6,2761.0,1.62597769]
[1749642030745,3.99164706,2761.5,2761.3,1.08384341]
[1749642030941,3.69,2761.4,2761.3,1.08384341]
[1749642031879,3.69,2761.4,2761.2,1.26464341]
[1749642032180,3.69,2761.4,2761.3,1.08384341]
[1749642032382,3.69,2761.4,2761.2,1.26464341]
[1749642034772,1.25192837,2761.5,2761.2,1.26464341]
[1749642034969,0.56264922,2761.4,2761.2,1.26464341]
[1749642035173,3.689,2761.4,2761.2,2.24231629]
[1749642035352,3.689,2761.4,2761.3,0.1808]
[1749642035775,3.691,2761.4,2761.3,0.1808]
[1749642036154,3.691,2761.4,2761.3,1.26433583]
[1749642036355,3.691,2761.4,2761.3,0.1808]
[1749642037848,3.69,2761.4,2761.3,0.1808]
[1749642038290,3.69,2761.4,2761.3,1.26444978]
[1749642038861,4.08916471,2761.4,2761.3,1.26444978]
[1749642039054,8.51491619,2761.4,2761.2,1.08364978]
[1749642039288,8.51491619,2761.4,2761.3,1.08364978]
[1749642040561,8.51491619,2761.4,2761.0,0.1808]
[1749642041205,4.89356471,2761.4,2761.0,0.1808]
[1749642041401,0.89972908,2761.3,2761.1,1.44577857]
[1749642042064,0.89972908,2761.3,2761.2,1.08433666]
[1749642042808,4.52121171,2761.3,2761.2,1.08433666]
[1749642043015,0.89972908,2761.3,2761.2,1.08433666]
[1749642043316,3.62161379,2761.2,2761.1,1.08433666]
[1749642043481,1.93832784,2761.2,2761.1,1.08433666]
[1749642043808,5.55994163,2761.2,2761.0,1.26513666]
[1749642044113,3.688,2761.1,2761.0,1.26513666]
[1749642044310,5.33746254,2761.1,2761.0,1.26513666]
[1749642044822,0.48244706,2761.5,2761.0,0.9623]
[1749642044975,3.99064706,2761.4,2761.2,1.08437553]
[1749642045172,3.689,2761.3,2761.1,1.44577857]
[1749642045399,3.689,2761.2,2761.1,1.44577857]
[1749642045802,0.30164706,2761.4,2761.1,1.44577857]
[1749642046012,0.30164706,2761.4,2761.2,1.44577857]
[1749642046167,3.689,2761.3,2761.2,1.44577857]
[1749642046615,3.689,2761.3,2761.2,1.62657857]
[1749642046800,3.689,2761.3,2761.2,1.62662619]
[1749642047118,3.689,2761.3,2761.2,0.1808]
[1749642048514,3.99064706,2761.4,2761.2,0.9776]
[1749642048673,3.689,2761.4,2761.2,0.9776]
[1749642049405,0.1808,2761.9,2761.2,0.9776]
[1749642049707,0.30164706,2761.9,2761.8,1.08422115]
[1749642050218,3.98964706,2761.9,2761.8,1.62650053]
[1749642051281,3.98964706,2761.9,2761.8,0.1808]
[1749642051483,3.98864706,2761.9,2761.8,0.1808]
[1749642053234,3.98864706,2761.9,2761.8,1.26326693]
[1749642056629,0.30164706,2761.9,2761.8,1.26326693]
[1749642056816,3.98764706,2761.9,2761.8,1.26326693]
[1749642058514,0.30164706,2761.9,2761.8,1.26326693]
[1749642058838,0.30164706,2761.9,2761.8,2.45360053]
[1749642059018,3.686,2762.1,2761.8,1.0079]
[1749642059334,3.686,2762.1,2762.0,1.08132452]
[1749642059729,3.686,2762.1,2762.0,1.26212452]
[1749642061822,4.44999503,2762.6,2762.0,1.26212452]
[1749642062127,4.50472656,2762.5,2762.0,1.26212452]
[1749642062286,0.5,2762.4,2762.0,1.26212452]
[1749642062487,3.685,2762.3,2762.1,1.08132452]
[1749642062835,0.5,2762.4,2762.2,0.7647]
[1749642063127,0.30164706,2762.5,2762.3,1.26154727]
[1749642063442,1.49301177,2762.5,2762.2,1.08074727]
[1749642063596,1.49301177,2762.5,2762.1,0.1808]
[1749642063597,1.49301177,2762.5,2762.1,1.26154727]
[1749642064305,1.09414706,2762.5,2762.1,1.26154727]
[1749642065086,1.09414706,2762.5,2762.2,1.08074727]
[1749642065531,0.30164706,2762.5,2762.2,1.08074727]
[1749642065700,0.30164706,2762.5,2762.1,12.06324727]
[1749642066239,3.688,2762.4,2762.1,1.88244727]
[1749642066524,3.688,2762.4,2762.3,0.1808]
[1749642067338,0.7308,2762.3,2761.8,1.26154727]
[1749642067498,6.3428206,2761.9,2761.8,0.1808]
[1749642067697,10.66610266,2761.9,2761.5,1.08074727]
[1749642068031,10.66610266,2761.9,2761.6,0.1808]
[1749642070655,3.695,2761.9,2761.7,1.26154727]
[1749642070808,3.695,2761.9,2761.7,0.1808]
[1749642071209,3.696,2761.8,2761.7,0.1808]
[1749642071501,3.696,2761.8,2761.7,1.26154727]
[1749642074241,3.696,2761.8,2761.7,0.1808]
[1749642074939,0.7864,2762.1,2761.7,0.1808]
[1749642075141,0.30164706,2762.1,2761.8,1.08198001]
[1749642075445,0.30164706,2762.1,2761.9,1.26278001]
[1749642075446,3.694,2762.0,2761.9,1.26278001]
[1749642075933,3.694,2762.0,2761.9,0.1808]
[1749642078247,3.693,2762.0,2761.9,1.6228809]
[1749642079341,3.693,2762.0,2761.9,0.1808]
[1749642079643,0.30164706,2762.1,2762.0,0.8219]
[1749642079841,0.30164706,2762.1,2762.0,12.9904508]
[1749642080143,3.692,2762.4,2762.0,13.1712508]
[1749642080350,3.692,2762.4,2762.2,1.44429627]
[1749642080750,3.692,2762.4,2762.3,0.1808]
[1749642088845,3.692,2762.4,2762.3,1.08263004]
[1749642091665,3.692,2762.4,2762.3,1.26343004]
[1749642097992,14.80392749,2762.4,2762.3,1.08263004]
[1749642098160,3.62030265,2762.2,2762.0,1.2448158]
[1749642098362,6.33998695,2762.1,2762.0,0.16218576]
[1749642098550,7.48735905,2762.1,2762.0,1.2448158]
[1749642098971,8.03735905,2762.1,2762.0,0.16218576]
[1749642099169,8.33900611,2762.1,2762.0,0.16218576]
[1749642099418,11.95943983,2762.1,2762.0,0.16218576]
[1749642099620,12.71383983,2762.1,2762.0,0.16218576]
[1749642100514,9.09340611,2762.1,2762.0,0.16218576]
[1749642100715,12.16383983,2762.1,2762.0,0.16218576]
[1749642100919,8.54340611,2762.1,2762.0,0.16218576]
[1749642101075,12.22840611,2762.1,2762.0,0.16218576]
[1749642103682,1.44901916,2762.1,2762.0,0.16218576]
[1749642103885,3.98664706,2762.1,2762.0,0.16218576]
[1749642104089,0.30164706,2762.1,2762.0,1.2451117]
[1749642104294,3.98664706,2762.1,2762.0,2.55328203]
[1749642104894,0.30164706,2762.1,2762.0,2.55328203]
[1749642105096,0.30164706,2762.1,2762.0,1.10898576]
[1749642106906,0.30164706,2762.1,2762.0,1.78681702]
[1749642116130,0.30164706,2762.1,2762.0,1.7871746]
[1749642119526,5.69816549,2762.1,2762.0,0.16218576]
[1749642119858,7.86771872,2762.1,2762.0,0.16218576]
[1749642120035,5.21273177,2762.1,2762.0,0.16218576]
[1749642120356,1.52773177,2762.1,2762.0,0.16218576]
[1749642120519,3.98664706,2762.1,2762.0,0.16218576]
[1749642121153,0.30164706,2762.1,2762.0,0.16218576]
[1749642121459,3.98664706,2762.1,2762.0,0.16218576]
[1749642122454,3.98664706,2762.1,2762.0,1.24561516]
[1749642124034,4.74732948,2762.1,2762.0,1.24561516]
[1749642124358,9.1811632,2762.1,2762.0,0.16218576]
[1749642124929,5.56072948,2762.1,2762.0,0.16218576]
[1749642126466,9.7311632,2762.1,2762.0,0.16218576]
[1749642127654,5.4961632,2762.1,2762.0,0.16218576]
[1749642127829,9.1811632,2762.1,2762.0,0.16218576]
[1749642129655,9.9119632,2762.1,2762.0,0.16218576]
[1749642134558,9.9129632,2762.1,2762.0,0.16218576]
[1749642137492,6.29252948,2762.1,2762.0,0.16218576]
[1749642137791,6.29252948,2762.1,2761.6,1.2642294]
[1749642137985,0.30164706,2762.0,2761.6,1.2642294]
[1749642138188,3.686,2761.9,2761.7,1.0834294]
[1749642138488,3.98764706,2761.9,2761.6,1.2642294]
[1749642140002,0.30164706,2761.9,2761.7,0.7927]
[1749642140207,0.30164706,2761.9,2761.8,0.1808]
[1749642140496,3.98764706,2761.9,2761.8,1.62498884]
[1749642141556,3.98764706,2761.9,2761.8,0.1808]
[1749642141755,3.98764706,2761.9,2761.8,1.26383494]
[1749642142058,3.98764706,2761.9,2761.8,1.26385526]
[1749642144827,3.62082699,2761.8,2761.7,1.08305526]
[1749642145020,7.60839795,2761.9,2761.7,1.08305526]
[1749642145402,3.98764706,2761.9,2761.7,1.08305526]
[1749642146523,4.76655465,2761.9,2761.7,1.08305526]
[1749642146727,3.62082699,2761.8,2761.7,1.08305526]
[1749642147294,4.79984706,2761.9,2761.6,1.08305526]
[1749642147490,8.42059758,2761.9,2761.6,1.08305526]
[1749642147691,8.42061294,2761.9,2761.6,1.08305526]
[1749642148297,3.62083005,2761.8,2761.6,1.08305526]
[1749642148521,3.62083005,2761.8,2761.7,1.08305526]
[1749642148723,8.42064131,2761.9,2761.7,1.08305526]
[1749642148926,3.62082699,2761.8,2761.7,1.08305526]
[1749642149225,3.62108922,2761.6,2761.5,1.08305526]
[1749642149434,3.62122035,2761.5,2761.4,1.08305526]
[1749642149635,3.80202035,2761.5,2761.4,1.08305526]
[1749642149820,3.62135148,2761.4,2761.3,1.08305526]
[1749642149999,7.30737789,2761.4,2761.2,1.08305526]
[1749642150208,3.62148263,2761.3,2761.2,1.08305526]
[1749642150394,0.1808,2761.3,2761.2,1.08305526]
[1749642150908,0.1808,2761.3,2761.1,1.08305526]
[1749642151232,3.686,2761.2,2761.1,1.08305526]
[1749642152731,0.1808,2761.3,2761.1,1.08305526]
[1749642152917,3.686,2761.2,2761.1,1.08305526]
[1749642153228,0.30164706,2761.3,2761.1,1.08305526]
[1749642153443,3.686,2761.2,2761.1,1.26385526]
[1749642154032,0.30164706,2761.3,2761.1,1.26385526]
[1749642154233,3.686,2761.2,2761.1,0.1808]
[1749642154421,0.30164706,2761.3,2761.2,0.8057]
[1749642154624,3.98764706,2761.3,2761.2,1.88895154]
[1749642156243,3.98764706,2761.3,2761.2,0.9865]
[1749642156826,3.98764706,2761.3,2761.2,2.06948332]
[1749642157041,3.98764706,2761.3,2761.2,1.26378332]
[1749642157255,4.46554177,2761.3,2761.1,1.08298332]
[1749642157442,8.0870244,2761.3,2761.1,1.08298332]
[1749642158120,4.46554177,2761.3,2761.0,1.08298332]
[1749642158438,7.60915193,2761.3,2761.1,1.08298332]
[1749642158624,7.60915193,2761.3,2761.0,1.08298332]
[1749642158944,7.60915193,2761.3,2760.9,0.1808]
[1749642158945,3.62174495,2761.1,2760.9,1.26378332]
[1749642159165,3.686,2761.0,2760.9,1.08298332]
[1749642161052,0.30164706,2761.1,2760.9,1.08298332]
[1749642161260,0.30164706,2761.1,2760.9,1.26378332]
[1749642161468,3.686,2761.0,2760.9,1.26321893]
[1749642161779,3.686,2761.0,2760.9,1.26311858]
[1749642162279,3.686,2761.0,2760.9,1.26312717]
[1749642162981,3.686,2761.0,2760.9,1.08232717]
[1749642163448,3.686,2761.0,2760.8,1.08232717]
[1749642163845,3.686,2761.0,2760.9,1.08232717]
[1749642165083,3.686,2761.0,2760.8,1.08232717]
[1749642167193,0.30164706,2761.1,2760.8,1.08232717]
[1749642167384,3.686,2761.0,2760.9,1.08232717]
[1749642167973,3.686,2761.0,2760.9,1.26312717]
[1749642170583,3.686,2761.0,2760.9,0.1808]
[1749642170793,3.686,2761.0,2760.9,1.2632273]
[1749642171111,3.686,2761.0,2760.9,1.0824273]
[1749642171680,7.30787613,2761.0,2760.9,1.0824273]
[1749642172012,4.4405,2761.0,2760.8,1.0824273]
[1749642173719,4.4405,2761.0,2760.9,1.0824273]
[1749642174716,3.686,2761.0,2760.9,7.42241425]
[1749642174920,3.686,2761.0,2760.9,6.52078695]
[1749642175128,3.686,2761.0,2760.9,0.1808]
[1749642175621,3.686,2761.0,2760.9,1.0834893]
[1749642175787,3.686,2761.0,2760.9,1.08373636]
[1749642176630,3.686,2761.0,2760.8,1.44418884]
[1749642177436,0.30164706,2761.1,2760.8,1.44418884]
[1749642177610,3.686,2760.9,2760.8,1.44418884]
[1749642181015,3.686,2760.9,2760.8,6.33998695]
[1749642181214,0.30164706,2761.1,2760.8,7.28858695]
[1749642181548,0.30164706,2761.1,2760.9,1.44636896]
[1749642181769,3.98764706,2761.1,2761.0,7.96715591]
[1749642184260,0.30164706,2761.1,2761.0,7.96715591]
[1749642184468,3.98764706,2761.1,2761.0,7.96715591]
[1749642184630,0.30164706,2761.1,2761.0,7.96715591]
[1749642184828,3.98764706,2761.1,2761.0,7.96715591]
[1749642185070,0.8002,2761.7,2761.0,7.35348695]
[1749642185228,3.686,2761.6,2761.4,1.08478564]
[1749642185942,3.686,2761.5,2761.4,1.08469323]
[1749642187468,0.30164706,2761.7,2761.4,1.08469323]
[1749642187671,3.686,2761.6,2761.5,1.08469323]
[1749642188446,3.686,2761.6,2761.5,1.08435551]
[1749642189298,0.30164706,2761.7,2761.5,1.08435551]
[1749642189590,3.686,2761.6,2761.5,1.08435551]
[1749642189769,0.30164706,2761.7,2761.5,1.08435551]
[1749642189770,3.92261723,2761.7,2761.5,1.08435551]
[1749642190093,3.686,2761.6,2761.5,1.08435551]
[1749642190893,3.686,2761.6,2761.4,1.08435551]
[1749642191460,3.686,2761.6,2761.5,1.08435551]
[1749642191661,3.686,2761.6,2761.4,1.08435551]
[1749642195162,3.686,2761.6,2761.3,0.1808]
[1749642196869,3.685,2761.5,2761.3,0.1808]
[1749642197075,3.685,2761.5,2761.3,0.9308]
[1749642197403,0.30164706,2761.7,2761.5,0.75]
[1749642197704,3.685,2761.9,2761.7,10.0]
[1749642199311,3.685,2761.9,2761.5,10.75]
[1749642199888,3.685,2761.9,2761.3,0.75]
[1749642199889,4.0535,2761.9,2761.3,0.75]
[1749642200209,4.0535,2761.9,2761.3,10.75]
[1749642204216,7.674216,2761.9,2761.3,10.75]
[1749642204419,4.0535,2761.9,2761.3,10.75]
[1749642204924,0.7917,2762.0,2761.4,6.33998695]
[1749642205121,3.685,2761.8,2761.4,6.33998695]
[1749642205322,3.685,2761.7,2761.6,6.33998695]
[1749642206190,3.685,2761.8,2761.7,0.8286]
[1749642207319,0.8031,2762.2,2761.7,1.0094]
[1749642207521,3.62023046,2762.3,2761.7,1.0094]
[1749642207822,3.685,2762.2,2762.0,0.1808]
[1749642208694,4.62636501,2762.4,2762.0,0.1808]
[1749642208896,3.685,2762.1,2762.0,0.1808]
[1749642209101,3.684,2762.1,2762.0,0.1808]
[1749642211625,3.684,2762.1,2762.0,1.26233488]
[1749642211791,1.12714706,2762.4,2762.0,1.26233488]
[1749642211997,3.684,2762.3,2762.0,7.60232183]
[1749642212214,3.684,2762.3,2762.2,0.1808]
[1749642214730,3.684,2762.3,2762.2,1.26233488]
[1749642214934,0.30164706,2762.4,2762.2,1.26233488]
[1749642215129,3.684,2762.3,2762.2,1.26233488]
[1749642215442,3.684,2762.3,2762.2,7.60232183]
[1749642215809,3.684,2762.3,2762.2,1.26233488]
[1749642217520,3.98564706,2762.4,2762.2,0.1808]
[1749642217834,3.98564706,2762.4,2762.3,1.08181583]
[1749642218716,3.98564706,2762.4,2762.2,1.26261583]
[1749642222477,0.30164706,2762.4,2762.2,1.26261583]
[1749642222758,0.30164706,2762.4,2762.3,1.08181583]
[1749642222977,3.98464706,2762.4,2762.3,1.08181583]
[1749642223269,0.30164706,2762.4,2762.3,1.08181583]
[1749642223428,0.30164706,2762.4,2762.3,1.89601583]
[1749642223429,3.683,2762.4,2762.3,1.89601583]
[1749642223627,3.683,2762.4,2762.3,0.8142]
[1749642223845,3.683,2762.4,2762.3,1.89612575]
[1749642224079,3.683,2762.4,2762.3,0.8142]
[1749642224297,3.683,2762.4,2762.3,1.89612569]
[1749642224475,3.683,2762.4,2762.3,1.08192397]
[1749642224642,3.683,2762.4,2762.2,1.62508921]
[1749642226788,0.8044,2762.9,2762.2,1.62508921]
[1749642226973,7.30258189,2762.8,2762.4,1.0824871]
[1749642227284,7.30258189,2762.8,2762.6,0.1808]
[1749642227575,7.3025326,2762.8,2762.6,0.1808]
[1749642227947,3.683,2762.8,2762.6,0.1808]
[1749642229413,4.42388205,2762.9,2762.6,0.1808]
[1749642229414,0.8044,2762.9,2762.6,0.1808]
[1749642229687,3.683,2762.8,2762.6,0.1808]
[1749642231049,3.61964744,2762.7,2762.6,0.1808]
[1749642231264,5.76361088,2762.7,2762.5,1.0824871]
[1749642231583,5.76361088,2762.7,2762.4,1.2632871]
[1749642231795,4.39940754,2762.7,2762.4,1.2632871]
[1749642232291,0.7797,2762.7,2762.5,1.0824871]
[1749642232495,4.39936198,2762.7,2762.5,1.0824871]
[1749642232994,0.7797,2762.7,2762.4,1.2632871]
[1749642233163,4.39936466,2762.7,2762.4,1.2632871]
[1749642233590,0.7797,2762.7,2762.4,1.2632871]
[1749642233794,4.39934952,2762.7,2762.5,1.0824871]
[1749642234158,5.04351836,2762.7,2762.5,1.0824871]
[1749642234380,5.04351836,2762.7,2762.4,1.2632871]
[1749642234610,1.42379066,2762.7,2762.4,1.2632871]
[1749642235122,5.04344708,2762.7,2762.4,1.2632871]
[1749642235723,5.04344708,2762.7,2762.5,1.0824871]
[1749642235897,1.42379066,2762.7,2762.5,1.0824871]
[1749642237743,4.47142552,2762.6,2762.5,1.0824871]
[1749642238599,0.85164706,2762.6,2762.5,1.0824871]
[1749642239715,0.30164706,2762.6,2762.5,1.0824871]
[1749642241730,0.30164706,2762.6,2762.4,1.44428921]
[1749642241931,3.683,2762.5,2762.4,1.44428921]
[1749642242243,3.683,2762.5,2762.4,1.62508921]
[1749642246144,0.30164706,2762.6,2762.4,1.62508921]
[1749642246346,3.682,2762.5,2762.4,1.62508921]
[1749642246563,3.682,2762.5,2762.4,1.44428921]
[1749642246749,3.682,2762.5,2762.4,1.62508921]
[1749642247764,0.30164706,2762.6,2762.4,1.62508921]
[1749642247935,0.30164706,2762.6,2762.5,1.44428921]
[1749642248135,3.98364706,2762.6,2762.5,1.44428921]
[1749642248374,3.98364706,2762.6,2762.4,1.62508921]
[1749642248666,0.30164706,2762.6,2762.5,1.44428921]
[1749642248984,0.30164706,2762.6,2762.5,8.56327616]
[1749642249150,3.98364706,2762.6,2762.5,0.779]
[1749642249362,3.98364706,2762.6,2762.4,2.34723381]
[1749642249567,3.98364706,2762.6,2762.5,1.44637474]
[1749642249568,3.682,2762.6,2762.5,1.44637474]
[1749642253774,3.682,2762.6,2762.4,2.34723381]
[1749642253975,4.60032754,2763.1,2762.5,0.7603]
[1749642254178,3.682,2763.0,2762.7,1.08485248]
[1749642254382,3.682,2763.0,2762.7,1.26565248]
[1749642254564,6.35790923,2763.1,2762.7,1.26565248]
[1749642254763,3.682,2763.0,2762.7,1.08485248]
[1749642255015,3.682,2763.0,2762.8,0.1808]
[1749642255860,3.682,2762.9,2762.8,0.1808]
[1749642256066,3.682,2762.9,2762.8,1.26565248]
[1749642256717,3.682,2762.9,2762.8,0.1808]
[1749642257133,3.682,2762.9,2762.8,1.26555485]
[1749642257881,3.682,2762.9,2762.8,0.1808]
[1749642259012,3.682,2762.9,2762.8,1.26555485]
[1749642259813,3.682,2762.9,2762.8,0.1808]
[1749642261134,3.92084708,2763.1,2762.8,1.26555485]
[1749642261135,0.30164706,2763.1,2762.8,1.26555485]
[1749642261287,3.682,2763.0,2762.8,1.26555485]
[1749642262192,7.30126809,2763.0,2762.8,1.26555485]
[1749642262737,7.30126809,2763.0,2762.8,0.1808]
[1749642263292,3.61938542,2762.9,2762.8,0.1808]
[1749642263617,7.30133152,2763.0,2762.8,0.1808]
[1749642264584,3.61938542,2762.9,2762.8,0.1808]
[1749642265039,5.50510503,2762.9,2762.8,0.1808]
[1749642265247,3.61951643,2762.8,2762.7,1.08475485]
[1749642267550,5.50516371,2762.9,2762.7,1.08475485]
[1749642267851,5.50516371,2762.9,2762.7,1.08461901]
[1749642269738,3.681,2762.8,2762.7,1.08461901]